fUST/lending_fUST_20260613
["ID","MTS","AMOUNT","RATE_DAILY","PERIOD"]
[424939037,1781304642000,-216.87,0.0003589,18]
[424939039,1781304642000,-2682.58,0.0003589,18]
[424939038,1781304642000,-500.0,0.0003589,18]
[424939041,1781304642000,-170.5647693,0.0003589,18]
[424939043,1781304642000,-500.0,0.0003589,18]
[424939040,1781304642000,-500.0,0.0003589,18]
[424939045,1781304642000,-500.0,0.0003589,18]
[424939066,1781304642000,-500.0,0.0003589,18]
[424939081,1781304642000,-7667.7,0.0003589,18]
[424939068,1781304642000,-1653.18,0.0003589,18]
[424939093,1781304642000,-500.0,0.00036164,18]
[424939095,1781304642000,-734.88,0.00036164,18]
[424939094,1781304642000,-500.0,0.00036164,18]
[424939098,1781304642000,-688.22,0.00036164,18]
[424939096,1781304642000,-500.0,0.00036164,18]
[424939097,1781304642000,-500.0,0.00036164,18]
[424939100,1781304642000,-748.24,0.00036164,18]
[424939099,1781304642000,-500.0,0.00036164,18]
[424939102,1781304642000,-500.0,0.00036164,18]
[424939101,1781304642000,-500.0,0.00036164,18]
[424939105,1781304642000,-16.41058832,0.00036164,18]
[424939104,1781304642000,-859.93941168,0.00036164,18]
[424939108,1781304642000,-1783.47,0.00036164,18]
[424939107,1781304642000,-1922.21,0.00036164,18]
[424939106,1781304642000,-624.35,0.00036164,18]
[424939109,1781304642000,-621.73,0.00036164,18]
[424939110,1781304642000,-767.41,0.00036164,18]
[424939111,1781304642000,-500.0,0.00036164,18]
[424939023,1781304642000,-500.0,0.0003589,18]
[424939092,1781304642000,-500.0,0.00036164,18]
[424939067,1781304642000,-983.57,0.0003589,18]
[424939091,1781304642000,-500.0,0.00036164,18]
[424939089,1781304642000,-185.67369648,0.00036064,2]
[424939069,1781304642000,-1380.99,0.0003589,18]
[424939070,1781304642000,-3718.07,0.0003589,18]
[424939072,1781304642000,-3489.51,0.0003589,18]
[424939071,1781304642000,-500.0,0.0003589,18]
[424939073,1781304642000,-3974.97,0.0003589,18]
[424939075,1781304642000,-500.0,0.0003589,18]
[424939076,1781304642000,-1008.06,0.0003589,18]
[424939079,1781304642000,-2354.58,0.0003589,18]
[424939080,1781304642000,-6084.02,0.0003589,18]
[424939077,1781304642000,-1202.05,0.0003589,18]
[424939074,1781304642000,-2212.97,0.0003589,18]
[424939078,1781304642000,-420.42079986,0.0003589,18]
[424939082,1781304642000,-984.06,0.0003589,18]
[424939084,1781304642000,-500.0,0.0003589,18]
[424939083,1781304642000,-680.77,0.0003589,18]
[424939085,1781304642000,-774.19,0.0003589,18]
[424939086,1781304642000,-1077.3,0.0003589,18]
[424939087,1781304642000,-1117.96,0.0003589,18]
[424939088,1781304642000,-500.0,0.0003589,18]
[424939090,1781304642000,-1040.1524,0.00036164,18]
[424939103,1781304642000,-500.0,0.00036164,18]
[424939020,1781304642000,-669.04,0.0003589,18]
[424939022,1781304642000,-642.97,0.0003589,18]
[424939013,1781304642000,-624.35,0.0003589,18]
[424939012,1781304642000,-876.35,0.0003589,18]
[424939015,1781304642000,-199.93107368,0.0003589,6]
[424939014,1781304642000,-1922.21,0.0003589,18]
[424939021,1781304642000,-500.0,0.0003589,18]
[424939016,1781304642000,-1783.47,0.0003589,18]
[424939017,1781304642000,-621.73,0.0003589,18]
[424939019,1781304642000,-500.0,0.0003589,18]
[424939018,1781304642000,-767.41,0.0003589,18]
[424939140,1781304643000,-773.1847745,0.00023401,9]
[424939112,1781304643000,-669.04,0.00036164,18]
[424939118,1781304643000,-1366.72,0.00036164,18]
[424939116,1781304643000,-591.72,0.00036164,18]
[424939115,1781304643000,-500.0,0.00036164,18]
[424939117,1781304643000,-500.0,0.00036164,18]
[424939113,1781304643000,-500.0,0.00036164,18]
[424939119,1781304643000,-500.0,0.00036164,18]
[424939120,1781304643000,-500.0,0.00036164,18]
[424939122,1781304643000,-609.7,0.00036164,18]
[424939114,1781304643000,-642.97,0.00036164,18]
[424939124,1781304643000,-46.74932686,0.00036164,18]
[424939123,1781304643000,-500.0,0.00036164,18]
[424939349,1781304646000,-2004.93608463,0.00023401,9]
[424939500,1781304801000,2143.10580713,0.000237,30]
[424939501,1781304806000,2143.10580711,0.000237,30]
[424939502,1781304811000,2143.10580711,0.000237,30]
[424939509,1781304948000,1000.0,0.0002317,30]
[424939516,1781305062000,2264.97466699,0.0001,2]
[424939522,1781305139000,857.24232286,0.000237,30]
[424939523,1781305144000,857.24232284,0.000237,30]
[424939524,1781305149000,857.24232284,0.000237,30]
[424939533,1781305480000,342.89692915,0.000237,30]
[424939534,1781305485000,342.89692913,0.000237,30]
[424939535,1781305490000,342.89692913,0.000237,30]
[424939574,1781305819000,205.73815749,0.000237,30]
[424939575,1781305824000,205.73815748,0.000237,30]
[424939588,1781305831000,-288.19986417,0.00013981,9]
[424939586,1781305831000,-2474.21075616,0.00013841,9]
[424939585,1781305831000,-300.0,0.00013841,9]
[424939584,1781305831000,-637.63281249,0.00013841,9]
[424939587,1781305831000,-2726.26706324,0.00013981,9]
[424939630,1781305838000,-210.9786491,0.00023489,2]
[424939635,1781305838000,-193.75131671,0.00023489,2]
[424939634,1781305838000,-199.73824326,0.00023489,2]
[424939636,1781305838000,-171.01426399,0.00023489,2]
[424939637,1781305838000,-268.84990011,0.00023489,2]
[424939638,1781305838000,-170.3275796,0.00023489,2]
[424939639,1781305838000,-196.78454928,0.00023489,2]
[424939640,1781305838000,-196.23578154,0.00023489,2]
[424939642,1781305838000,-164.25176474,0.00023489,2]
[424939641,1781305838000,-208.62306531,0.00023489,2]
[424939643,1781305838000,-157.41833033,0.00023489,2]
[424939648,1781305838000,-643.66,0.00023836,2]
[424939647,1781305838000,-643.66,0.00023562,2]
[424939645,1781305838000,-156.055182,0.00023489,2]
[424939646,1781305838000,-185.32747609,0.0002351,2]
[424939651,1781305838000,-313.07562052,0.00024343,2]
[424939649,1781305838000,-643.66,0.0002411,2]
[424939650,1781305838000,-500.0,0.00024342,2]
[424939652,1781305838000,-389.0884897,0.00024343,2]
[424939653,1781305838000,-421.95729821,0.00024343,2]
[424939655,1781305838000,-190.19630119,0.00024343,2]
[424939629,1781305838000,-194.54424485,0.00023489,2]
[424939644,1781305838000,-180.79891184,0.00023489,2]
[424939631,1781305838000,-195.59611755,0.00023489,2]
[424939609,1781305838000,-483.375958,0.0001764,2]
[424939632,1781305838000,-171.72391128,0.00023489,2]
[424939603,1781305838000,-1985.53307259,0.00013981,9]
[424939604,1781305838000,-167.0,0.00014999,2]
[424939605,1781305838000,-9235.01424964,0.00015,2]
[424939606,1781305838000,-392.07976699,0.00015,2]
[424939607,1781305838000,-2047.42912168,0.00017,2]
[424939608,1781305838000,-265.213224,0.000176,2]
[424939660,1781305838000,-342.02852798,0.00024343,2]
[424939611,1781305838000,-890.71133996,0.00017722,2]
[424939614,1781305838000,-551.75248474,0.00019,2]
[424939618,1781305838000,-233.77393645,0.0002042,4]
[424939633,1781305838000,-153.02278284,0.00023489,2]
[424939616,1781305838000,-126000.0,0.0002,2]
[424939620,1781305838000,-150.308,0.00020757,2]
[424939617,1781305838000,-192.10665944,0.0002002,2]
[424939621,1781305838000,-300.0,0.00021024,2]
[424939623,1781305838000,-210.78298607,0.00022442,2]
[424939622,1781305838000,-265.213224,0.00021024,2]
[424939624,1781305838000,-169.88,0.00022551,7]
[424939628,1781305838000,-156.53781026,0.00023489,2]
[424939626,1781305838000,-1283.17121716,0.00022946,2]
[424939627,1781305838000,-235.27994567,0.00023167,7]
[424939625,1781305838000,-169.89,0.00022651,7]
[424939619,1781305838000,-168.638,0.00020757,2]
[424939654,1781305838000,-391.19223511,0.00024343,2]
[424939658,1781305838000,-399.47648653,0.00024343,2]
[424939657,1781305838000,-306.04556567,0.00024343,2]
[424939683,1781305838000,-586.78835266,0.00024912,2]
[424939687,1781305838000,-163.71907147,0.00024912,2]
[424939689,1781305838000,-581.25395013,0.00024912,2]
[424939690,1781305838000,-513.04279197,0.00024912,2]
[424939688,1781305838000,-599.21472979,0.00024912,2]
[424939691,1781305838000,-806.54970034,0.00024912,2]
[424939694,1781305838000,-588.70734463,0.00024912,2]
[424939696,1781305838000,-492.75529422,0.00024912,2]
[424939693,1781305838000,-590.35364783,0.00024912,2]
[424939692,1781305838000,-510.98273879,0.00024912,2]
[424939695,1781305838000,-625.86919593,0.00024912,2]
[424939697,1781305838000,-542.39673551,0.00024912,2]
[424939656,1781305838000,-343.44782256,0.00024343,2]
[424939698,1781305838000,-472.254991,0.00024912,2]
[424939700,1781305838000,-247.07570178,0.00024912,2]
[424939703,1781305838000,-154.61618209,0.00024934,2]
[424939701,1781305838000,-643.66,0.00024932,2]
[424939702,1781305838000,-311.5303775,0.00024934,2]
[424939704,1781305838000,-555.98242827,0.00024934,2]
[424939706,1781305838000,-643.66,0.00025205,2]
[424939708,1781305838000,-626.15124103,0.00025291,2]
[424939707,1781305838000,-316.59195419,0.00025291,2]
[424939705,1781305838000,-352.9199185,0.0002502,7]
[424939686,1781305838000,-459.06834851,0.00024912,2]
[424939685,1781305838000,-515.17173384,0.00024912,2]
[424939699,1781305838000,-468.165546,0.00024912,2]
[424939684,1781305838000,-380.39260238,0.00024912,2]
[424939682,1781305838000,-632.93594731,0.00024912,2]
[424939659,1781305838000,-387.50263342,0.00024343,2]
[424939661,1781305838000,-537.69980023,0.00024343,2]
[424939662,1781305838000,-340.65515919,0.00024343,2]
[424939666,1781305838000,-328.50352948,0.00024343,2]
[424939665,1781305838000,-417.24613062,0.00024343,2]
[424939664,1781305838000,-392.47156309,0.00024343,2]
[424939669,1781305838000,-312.110364,0.00024343,2]
[424939667,1781305838000,-361.59782367,0.00024343,2]
[424939673,1781305838000,-265.213224,0.00024449,2]
[424939670,1781305838000,-155.76518875,0.00024364,2]
[424939663,1781305838000,-393.56909855,0.00024343,2]
[424939668,1781305838000,-314.83666067,0.00024343,2]
[424939680,1781305838000,-469.61343077,0.00024912,2]
[424939672,1781305838000,-643.66,0.00024384,2]
[424939679,1781305838000,-10785.86991518,0.000249,120]
[424939678,1781305838000,-500.0,0.0002489,2]
[424939676,1781305838000,-643.66,0.00024658,2]
[424939681,1781305838000,-583.63273455,0.00024912,2]
[424939675,1781305838000,-15497.51558232,0.0002465,2]
[424939677,1781305838000,-600.0,0.00024828,10]
[424939674,1781305838000,-500.0,0.00024616,2]
[424939671,1781305838000,-370.65495218,0.00024364,2]
[424939732,1781305839000,-723.19564735,0.00025291,2]
[424939727,1781305839000,-151.0,0.00025291,6]
[424939729,1781305839000,-657.00705896,0.00025291,2]
[424939730,1781305839000,-250.07231548,0.00025291,2]
[424939726,1781305839000,-784.94312617,0.00025291,2]
[424939736,1781305839000,-179.54,0.00025313,2]
[424939731,1781305839000,-629.67332133,0.00025291,2]
[424939728,1781305839000,-834.49226124,0.00025291,2]
[424939733,1781305839000,-214.57927572,0.00025291,2]
[424939735,1781305839000,-494.15140355,0.00025291,2]
[424939738,1781305839000,-179.55,0.00025313,2]
[424939724,1781305839000,-681.31031838,0.00025291,2]
[424939734,1781305839000,-624.220728,0.00025291,2]
[424939725,1781305839000,-787.1381971,0.00025291,2]
[424939711,1781305839000,-782.38447022,0.00025291,2]
[424939719,1781305839000,-353.20257248,0.00025291,2]
[424939718,1781305839000,-775.00526683,0.00025291,2]
[424939720,1781305839000,-323.77748579,0.00025291,2]
[424939723,1781305839000,-414.81834356,0.00025291,2]
[424939721,1781305839000,-364.6698954,0.00025291,2]
[424939716,1781305839000,-380.70218328,0.00025291,2]
[424939713,1781305839000,-686.89564512,0.00025291,2]
[424939714,1781305839000,-612.09113135,0.00025291,2]
[424939715,1781305839000,-327.43814294,0.00025291,2]
[424939712,1781305839000,-570.58890357,0.00025291,2]
[424939709,1781305839000,-778.1769794,0.00025291,2]
[424939710,1781305839000,-843.91459642,0.00025291,2]
[424939737,1781305839000,-179.55,0.00025313,2]
[424939722,1781305839000,-1075.39960046,0.00025291,2]
[424939739,1781305839000,-425.26944512,0.00025313,2]
[424939717,1781305839000,-798.95297305,0.00025291,2]
[424939742,1781305839000,-741.30990436,0.00025313,2]
[424939771,1781305839000,-439.73665011,0.00027123,2]
[424939770,1781305839000,-1373.6504708,0.00027093,2]
[424939769,1781305839000,-1881.9493008,0.00027093,2]
[424939766,1781305839000,-643.66,0.00026575,2]
[424939767,1781305839000,-643.66,0.00026849,2]
[424939765,1781305839000,-483.375958,0.0002646,2]
[424939764,1781305839000,-643.66,0.00026301,2]
[424939762,1781305839000,-1613.09940069,0.00026239,2]
[424939763,1781305839000,-1177.41468926,0.00026239,2]
[424939760,1781305839000,-939.22686155,0.00026239,2]
[424939761,1781305839000,-1030.34346769,0.00026239,2]
[424939768,1781305839000,-1202.06737897,0.00027093,2]
[424939759,1781305839000,-643.66,0.00026027,2]
[424939758,1781305839000,-1283.17121716,0.00025771,2]
[424939756,1781305839000,-926.63738045,0.00025693,2]
[424939747,1781305839000,-858.6195564,0.0002567,2]
[424939741,1781305839000,-467.29556625,0.00025313,2]
[424939743,1781305839000,-5707.9656,0.00025444,2]
[424939744,1781305839000,-643.66,0.00025479,2]
[424939749,1781305839000,-998.69121631,0.0002567,2]
[424939748,1781305839000,-765.11391419,0.0002567,2]
[424939745,1781305839000,-782.68905129,0.0002567,2]
[424939755,1781305839000,-787.09165167,0.00025693,2]
[424939740,1781305839000,-949.999905,0.00025313,120]
[424939751,1781305839000,-1344.24950057,0.0002567,2]
[424939752,1781305839000,-981.17890771,0.0002567,2]
[424939750,1781305839000,-968.75658354,0.0002567,2]
[424939754,1781305839000,-903.99455919,0.0002567,2]
[424939753,1781305839000,-1043.11532655,0.0002567,2]
[424939757,1781305839000,-643.66,0.00025753,2]
[424939746,1781305839000,-972.72122425,0.0002567,2]
[424940293,1781306134000,1698.23448603,0.000237,30]
[424940295,1781306139000,1698.23448601,0.000237,30]
[424940296,1781306144000,1698.23448601,0.000237,30]
[424940310,1781306473000,679.29379442,0.000237,30]
[424940311,1781306478000,679.2937944,0.000237,30]
[424940312,1781306483000,679.2937944,0.000237,30]
[424940318,1781306678000,271.71751777,0.000237,30]
[424940319,1781306683000,271.71751776,0.000237,30]
[424940320,1781306688000,271.71751776,0.000237,30]
[424940324,1781306796000,5000.0,0.00024658,120]
[424940327,1781306833000,239.31,0.00024633,30]
[424940331,1781306872000,4049.999095,0.00024658,120]
[424940351,1781307017000,163.03051066,0.000237,30]
[424940352,1781307022000,163.03051065,0.000237,30]
[424940367,1781307032000,-166.66666666,0.00020601,2]
[424940369,1781307032000,-250.0,0.00021473,2]
[424940370,1781307032000,-183.15858,0.00021503,2]
[424940364,1781307032000,-500.0,0.00019999,7]
[424940368,1781307032000,-166.66666666,0.00021463,2]
[424940365,1781307032000,-500.0,0.00019999,8]
[424940366,1781307032000,-6484.36438208,0.00020079,2]
[424940371,1781307032000,-1000.0,0.00021563,2]
[424940358,1781307032000,-166.66666668,0.00019739,2]
[424940357,1781307032000,-156.49650075,0.00019244,2]
[424940363,1781307032000,-500.0,0.00019999,6]
[424940360,1781307032000,-500.0,0.00019999,3]
[424940362,1781307032000,-500.0,0.00019999,5]
[424940359,1781307032000,-500.0,0.00019999,2]
[424940356,1781307032000,-4311.231625,0.00017047,9]
[424940355,1781307032000,-434.57727201,0.00017047,9]
[424940354,1781307032000,-254.19110299,0.00017047,9]
[424940375,1781307032000,-206.48683354,0.0002351,2]
[424940361,1781307032000,-500.0,0.00019999,4]
[424940372,1781307032000,-188.812373,0.00021637,2]
[424940382,1781307032000,-155.23937299,0.0002351,2]
[424940373,1781307032000,-326.098103,0.00022535,2]
[424940389,1781307032000,-1396.55,0.00023562,2]
[424940374,1781307032000,-2904.94120238,0.00023139,2]
[424940392,1781307032000,-2408.17532028,0.00024033,2]
[424940394,1781307032000,-1351.19481678,0.0002411,2]
[424940390,1781307032000,-1396.55,0.00023836,2]
[424940391,1781307032000,-177.11692,0.00023889,2]
[424940388,1781307032000,-199.38720067,0.0002351,2]
[424940384,1781307032000,-198.94768482,0.0002351,2]
[424940385,1781307032000,-154.65995564,0.0002351,2]
[424940393,1781307032000,-500.0,0.00024109,9]
[424940387,1781307032000,-167.39271658,0.0002351,2]
[424940383,1781307032000,-190.03908341,0.0002351,2]
[424940380,1781307032000,-151.09102768,0.0002351,2]
[424940378,1781307032000,-153.91283759,0.0002351,2]
[424940376,1781307032000,-189.82095036,0.0002351,2]
[424940381,1781307032000,-272.81576093,0.0002351,2]
[424940379,1781307032000,-373.28487545,0.0002351,2]
[424940386,1781307032000,-207.69520336,0.0002351,2]
[424940377,1781307032000,-156.13457371,0.0002351,2]
[424940463,1781307038000,-397.89536965,0.00024364,2]
[424940466,1781307038000,-398.77440133,0.00024364,2]
[424940468,1781307038000,-1396.55,0.00024384,2]
[424940467,1781307038000,-334.78543316,0.00024364,2]
[424940470,1781307038000,-500.0,0.00024649,10]
[424940472,1781307038000,-500.0,0.00024911,11]
[424940473,1781307038000,-1396.55,0.00024932,2]
[424940471,1781307038000,-1396.55,0.00024658,2]
[424940476,1781307038000,-569.46285109,0.00024933,2]
[424940464,1781307038000,-309.31991127,0.00024364,2]
[424940475,1781307038000,-619.46050061,0.00024933,2]
[424940469,1781307038000,-5925.42000892,0.00024604,2]
[424940461,1781307038000,-310.47874598,0.00024364,2]
[424940455,1781307038000,-312.26914743,0.00024364,2]
[424940458,1781307038000,-302.18205537,0.00024364,2]
[424940465,1781307038000,-415.39040673,0.00024364,2]
[424940459,1781307038000,-545.63152186,0.00024364,2]
[424940456,1781307038000,-746.5697509,0.00024364,2]
[424940453,1781307038000,-234.50572923,0.00024364,2]
[424940450,1781307038000,-412.97366707,0.00024364,2]
[424940451,1781307038000,-379.64190073,0.00024364,2]
[424940447,1781307038000,-150.307,0.00024264,6]
[424940446,1781307038000,-231.129,0.00024264,6]
[424940448,1781307038000,-500.0,0.00024364,2]
[424940445,1781307038000,-45.35518322,0.0002411,2]
[424940444,1781307038000,-5000.0,0.00023868,9]
[424940474,1781307038000,-323.02694309,0.00024933,2]
[424940462,1781307038000,-380.07816682,0.00024364,2]
[424940477,1781307038000,-469.01145846,0.00024933,2]
[424940492,1781307038000,-152.0,0.0002502,7]
[424940481,1781307038000,-1119.85462635,0.00024933,2]
[424940480,1781307038000,-170.76190334,0.00024933,2]
[424940508,1781307038000,-158.67448904,0.00025313,2]
[424940507,1781307038000,-341.52380668,0.00025313,2]
[424940506,1781307038000,-503.96724886,0.00025313,2]
[424940504,1781307038000,-2000.0,0.00025313,120]
[424940505,1781307038000,-624.53829485,0.00025313,2]
[424940503,1781307038000,-376.30880689,0.00025313,2]
[424940501,1781307038000,-189.3232894,0.00025313,2]
[424940500,1781307038000,-349.13621497,0.00025313,2]
[424940498,1781307038000,-484.54041464,0.00025313,2]
[424940499,1781307038000,-273.22201632,0.00025313,2]
[424940497,1781307038000,-500.0,0.0002529,12]
[424940496,1781307038000,-159.76199353,0.00025213,2]
[424940494,1781307038000,-188.812373,0.00025061,2]
[424940502,1781307038000,-759.28380145,0.00025313,2]
[424940491,1781307038000,-502.17814974,0.00024933,2]
[424940495,1781307038000,-1396.55,0.00025205,2]
[424940479,1781307038000,-251.98362443,0.00024933,2]
[424940482,1781307038000,-453.27308305,0.00024933,2]
[424940483,1781307038000,-818.44728279,0.00024933,2]
[424940486,1781307038000,-570.11725023,0.00024933,2]
[424940485,1781307038000,-465.71811897,0.00024933,2]
[424940484,1781307038000,-257.69363681,0.00024933,2]
[424940478,1781307038000,-468.40372114,0.00024933,2]
[424940487,1781307038000,-596.84305447,0.00024933,2]
[424940489,1781307038000,-623.08561009,0.00024933,2]
[424940490,1781307038000,-598.161602,0.00024933,2]
[424940493,1781307038000,-8900.10486181,0.00025026,2]
[424940488,1781307038000,-463.97986691,0.00024933,2]
[424940549,1781307039000,-116025.59121004,0.00025444,2]
[424940552,1781307039000,-500.0,0.0002567,13]
[424940550,1781307039000,-3804.37378996,0.00025444,2]
[424940546,1781307039000,-500.0,0.00025443,2]
[424940548,1781307039000,-400.0,0.00025443,2]
[424940538,1781307039000,-500.0,0.00025443,2]
[424940543,1781307039000,-500.0,0.00025443,2]
[424940540,1781307039000,-500.0,0.00025443,2]
[424940544,1781307039000,-500.0,0.00025443,2]
[424940542,1781307039000,-500.0,0.00025443,2]
[424940551,1781307039000,-1396.55,0.00025479,2]
[424940547,1781307039000,-500.0,0.00025443,2]
[424940554,1781307039000,-780.67286856,0.00025693,2]
[424940570,1781307039000,-936.80744228,0.00026262,2]
[424940556,1781307039000,-980.8124593,0.00025693,2]
[424940553,1781307039000,-949.10475182,0.00025693,2]
[424940557,1781307039000,-755.45513841,0.00025693,2]
[424940555,1781307039000,-1866.42437725,0.00025693,2]
[424940560,1781307039000,-950.19541705,0.00025693,2]
[424940561,1781307039000,-994.73842412,0.00025693,2]
[424940559,1781307039000,-776.19686495,0.00025693,2]
[424940562,1781307039000,-773.29977818,0.00025693,2]
[424940567,1781307039000,-1396.55,0.00026027,2]
[424940564,1781307039000,-996.93600333,0.00025693,2]
[424940563,1781307039000,-1038.47601682,0.00025693,2]
[424940566,1781307039000,-1396.55,0.00025753,2]
[424940545,1781307039000,-500.0,0.00025443,2]
[424940558,1781307039000,-1364.07880465,0.00025693,2]
[424940541,1781307039000,-500.0,0.00025443,2]
[424940524,1781307039000,-618.63982254,0.00025313,2]
[424940537,1781307039000,-500.0,0.00025443,2]
[424940569,1781307039000,-1138.92570218,0.00026262,2]
[424940510,1781307039000,-151.0,0.00025313,6]
[424940509,1781307039000,-285.23390466,0.00025313,2]
[424940512,1781307039000,-784.64996744,0.00025313,2]
[424940511,1781307039000,-1493.1395018,0.00025313,2]
[424940513,1781307039000,-604.36411073,0.00025313,2]
[424940514,1781307039000,-703.5171877,0.00025313,2]
[424940517,1781307039000,-313.97374038,0.00025313,2]
[424940516,1781307039000,-411.63484844,0.00025313,2]
[424940515,1781307039000,-1091.26304372,0.00025313,2]
[424940520,1781307039000,-620.95749196,0.00025313,2]
[424940518,1781307039000,-360.5183271,0.00025313,2]
[424940519,1781307039000,-515.38727361,0.00025313,2]
[424940539,1781307039000,-436.73087042,0.00025443,2]
[424940522,1781307039000,-795.79073929,0.00025313,2]
[424940523,1781307039000,-169.64702593,0.00025313,2]
[424940525,1781307039000,-830.78081345,0.00025313,2]
[424940526,1781307039000,-797.54880266,0.00025313,2]
[424940527,1781307039000,-669.57086632,0.00025313,2]
[424940528,1781307039000,-166.71891545,0.00025313,2]
[424940531,1781307039000,-395.35422244,0.00025343,2]
[424940530,1781307039000,-173.73069484,0.00025313,2]
[424940532,1781307039000,-350.07114594,0.00025343,2]
[424940529,1781307039000,-429.15855145,0.00025313,2]
[424940534,1781307039000,-170.36630755,0.00025343,2]
[424940535,1781307039000,-446.3340773,0.00025344,2]
[424940536,1781307039000,-198.37636221,0.00025443,2]
[424940533,1781307039000,-317.83543937,0.00025343,2]
[424940521,1781307039000,-760.15633364,0.00025313,2]
[424940568,1781307039000,-159.76199351,0.00026109,2]
[424940631,1781307039000,-517.0,0.00027175,2]
[424940572,1781307039000,-906.5461661,0.00026262,2]
[424940604,1781307039000,-175.138676,0.00027175,2]
[424940608,1781307039000,-151.0,0.00027175,2]
[424940605,1781307039000,-151.0,0.00027175,2]
[424940606,1781307039000,-151.0,0.00027175,2]
[424940607,1781307039000,-151.0,0.00027175,2]
[424940609,1781307039000,-151.0,0.00027175,2]
[424940612,1781307039000,-151.5,0.00027175,2]
[424940610,1781307039000,-151.0,0.00027175,2]
[424940611,1781307039000,-151.0,0.00027175,2]
[424940614,1781307039000,-151.5,0.00027175,2]
[424940613,1781307039000,-517.0,0.00027175,2]
[424940615,1781307039000,-517.0,0.00027175,2]
[424940616,1781307039000,-151.5,0.00027175,2]
[424940602,1781307039000,-153.907958,0.00027175,2]
[424940617,1781307039000,-151.5,0.00027175,2]
[424940619,1781307039000,-151.5,0.00027175,2]
[424940620,1781307039000,-517.0,0.00027175,2]
[424940621,1781307039000,-241.93246848,0.00027175,2]
[424940623,1781307039000,-517.0,0.00027175,2]
[424940624,1781307039000,-517.0,0.00027175,2]
[424940622,1781307039000,-517.0,0.00027175,2]
[424940625,1781307039000,-517.0,0.00027175,2]
[424940627,1781307039000,-517.0,0.00027175,2]
[424940626,1781307039000,-517.0,0.00027175,2]
[424940629,1781307039000,-517.0,0.00027175,2]
[424940628,1781307039000,-517.0,0.00027175,2]
[424940630,1781307039000,-517.0,0.00027175,2]
[424940632,1781307039000,-517.0,0.00027175,2]
[424940618,1781307039000,-517.0,0.00027175,2]
[424940603,1781307039000,-151.0,0.00027175,2]
[424940565,1781307039000,-836.96358289,0.00025693,2]
[424940600,1781307039000,-151.0,0.00027175,2]
[424940601,1781307039000,-151.72553,0.00027175,2]
[424940574,1781307039000,-931.43623795,0.00026262,2]
[424940571,1781307039000,-2239.7092527,0.00026262,2]
[424940573,1781307039000,-1636.89456558,0.00026262,2]
[424940576,1781307039000,-1193.68610894,0.00026262,2]
[424940575,1781307039000,-1140.23450046,0.00026262,2]
[424940578,1781307039000,-1004.35629947,0.00026262,2]
[424940577,1781307039000,-927.95973381,0.00026262,2]
[424940583,1781307039000,-1396.55,0.00026575,2]
[424940580,1781307039000,-300.0,0.00026301,2]
[424940581,1781307039000,-1396.55,0.00026301,2]
[424940582,1781307039000,-177.11692,0.00026403,2]
[424940585,1781307039000,-159.76199351,0.00027004,2]
[424940584,1781307039000,-1396.55,0.00026849,2]
[424940579,1781307039000,-1196.32320399,0.00026262,2]
[424940587,1781307039000,-1092.94201599,0.00027117,2]
[424940586,1781307039000,-500.0,0.00027092,14]
[424940597,1781307039000,-161.79048646,0.00027175,2]
[424940598,1781307039000,-151.0,0.00027175,2]
[424940596,1781307039000,-151.5,0.00027175,2]
[424940592,1781307039000,-151.5,0.00027175,2]
[424940595,1781307039000,-151.5,0.00027175,2]
[424940594,1781307039000,-151.5,0.00027175,2]
[424940599,1781307039000,-151.0,0.00027175,2]
[424940590,1781307039000,-1396.55,0.00027123,2]
[424940591,1781307039000,-151.0,0.00027175,2]
[424940588,1781307039000,-2612.99412815,0.00027117,2]
[424940589,1781307039000,-1909.71032651,0.00027117,2]